[Event "Titled Tuesday Blitz March 08 Early 2022"]
[White "Sychev, Klementy"]
[Black "Martinez Alcantara, Jose Eduardo"]
[WhiteFideId "4114060"]
[BlackFideId "3805662"]
[WhiteElo "2564"]
[BlackElo "2690"]
[Result "0-1"]
[Round "02"]
[TimeControl "180+1"]
[Date "2022.03.08"]
[WhiteClock "0:00:01"]
[BlackClock "0:00:23"]

1. e4 {[%clk 0:02:55]}  c5 {[%clk 0:02:59]} 2. Nf3 {[%clk 0:02:55]}  d6 {[%clk 0:02:59]} 3. d4 {[%clk 0:02:54]}  cxd4 {[%clk 0:03:00]} 4. Nxd4 {[%clk 0:02:53]}  Nf6 {[%clk 0:03:00]} 5. Nc3 {[%clk 0:02:52]}  Nc6 {[%clk 0:03:01]} 6. Bg5 {[%clk 0:02:46]}  e6 {[%clk 0:03:01]} 7. Bb5 {[%clk 0:02:40]}  Bd7 {[%clk 0:03:00]} 8. Bxc6 {[%clk 0:02:40]}  bxc6 {[%clk 0:02:58]} 9. Qf3 {[%clk 0:02:40]}  e5 {[%clk 0:02:38]} 10. Nf5 {[%clk 0:02:39]}  Bxf5 {[%clk 0:02:38]} 11. Qxf5 {[%clk 0:02:40]}  Be7 {[%clk 0:02:37]} 12. O-O {[%clk 0:02:39]}  Qc8 {[%clk 0:02:34]} 13. Qf3 {[%clk 0:02:37]}  Qg4 {[%clk 0:02:26]} 14. Qg3 {[%clk 0:01:59]}  Qxg3 {[%clk 0:02:20]} 15. hxg3 {[%clk 0:02:00]}  Nd7 {[%clk 0:02:12]} 16. Be3 {[%clk 0:01:57]}  Nb6 {[%clk 0:02:09]} 17. Rad1 {[%clk 0:01:53]}  Rb8 {[%clk 0:02:01]} 18. b3 {[%clk 0:01:43]}  h5 {[%clk 0:01:54]} 19. Ne2 {[%clk 0:01:27]}  Nd7 {[%clk 0:01:25]} 20. c4 {[%clk 0:01:24]}  a6 {[%clk 0:01:26]} 21. Nc3 {[%clk 0:01:20]}  Nf8 {[%clk 0:01:00]} 22. f4 {[%clk 0:00:57]}  Ne6 {[%clk 0:01:00]} 23. f5 {[%clk 0:00:42]}  Nf8 {[%clk 0:01:00]} 24. Kf2 {[%clk 0:00:35]}  Nd7 {[%clk 0:01:00]} 25. Kf3 {[%clk 0:00:35]}  g6 {[%clk 0:00:50]} 26. Ke2 {[%clk 0:00:30]}  Rg8 {[%clk 0:00:47]} 27. Rf3 {[%clk 0:00:24]}  gxf5 {[%clk 0:00:44]} 28. exf5 {[%clk 0:00:09]}  Nf6 {[%clk 0:00:44]} 29. Bc1 {[%clk 0:00:06]}  Rc8 {[%clk 0:00:40]} 30. Ba3 {[%clk 0:00:05]}  Rd8 {[%clk 0:00:30]} 31. Rfd3 {[%clk 0:00:03]}  e4 {[%clk 0:00:31]} 32. Re3 {[%clk 0:00:03]}  d5 {[%clk 0:00:31]} 33. Bxe7 {[%clk 0:00:02]}  Kxe7 {[%clk 0:00:32]} 34. cxd5 {[%clk 0:00:03]}  cxd5 {[%clk 0:00:33]} 35. Na4 {[%clk 0:00:03]}  h4 {[%clk 0:00:26]} 36. Rh1 {[%clk 0:00:01]}  Rxg3 {[%clk 0:00:24]} 37. Rxg3 {[%clk 0:00:01]}  hxg3 {[%clk 0:00:25]} 38. Rc1 {[%clk 0:00:02]}  d4 {[%clk 0:00:25]} 39. Rc6 {[%clk 0:00:02]}  d3+ {[%clk 0:00:25]} 40. Kd2 {[%clk 0:00:01]}  Ng4 {[%clk 0:00:23]} 0-1


[Site "https://www.chess.com"]

[Event "Titled Tuesday Blitz March 08 Early 2022"]
[White "Timofeev, Artyom"]
[Black "Morefield, Jason"]
[WhiteFideId "4140419"]
[BlackFideId "30920825"]
[WhiteElo "2594"]
[BlackElo "2171"]
[Result "1-0"]
[Round "02"]
[TimeControl "180+1"]
[Date "2022.03.08"]
[WhiteClock "0:00:46"]
[BlackClock "0:00:05"]

1. c4 {[%clk 0:03:00]}  c6 {[%clk 0:02:59]} 2. Nf3 {[%clk 0:03:00]}  d5 {[%clk 0:03:00]} 3. e3 {[%clk 0:03:00]}  Nf6 {[%clk 0:02:56]} 4. Nc3 {[%clk 0:02:59]}  e6 {[%clk 0:02:45]} 5. d4 {[%clk 0:02:59]}  Nbd7 {[%clk 0:02:44]} 6. Bd2 {[%clk 0:02:57]}  Bd6 {[%clk 0:02:43]} 7. Rc1 {[%clk 0:02:57]}  b6 {[%clk 0:02:41]} 8. Bd3 {[%clk 0:02:55]}  c5 {[%clk 0:02:37]} 9. cxd5 {[%clk 0:02:54]}  exd5 {[%clk 0:02:37]} 10. O-O {[%clk 0:02:52]}  O-O {[%clk 0:02:34]} 11. Nb5 {[%clk 0:02:42]}  Bb8 {[%clk 0:02:32]} 12. dxc5 {[%clk 0:02:35]}  bxc5 {[%clk 0:02:30]} 13. b4 {[%clk 0:02:28]}  c4 {[%clk 0:02:27]} 14. Bb1 {[%clk 0:02:28]}  Re8 {[%clk 0:02:23]} 15. Bc3 {[%clk 0:02:26]}  a6 {[%clk 0:02:17]} 16. Nbd4 {[%clk 0:02:24]}  Ne4 {[%clk 0:02:16]} 17. Bxe4 {[%clk 0:02:23]}  dxe4 {[%clk 0:02:14]} 18. Nd2 {[%clk 0:01:52]}  Qh4 {[%clk 0:02:01]} 19. g3 {[%clk 0:01:47]}  Qh3 {[%clk 0:02:01]} 20. Nxc4 {[%clk 0:01:46]}  Nf6 {[%clk 0:01:54]} 21. f3 {[%clk 0:01:41]}  Bxg3 {[%clk 0:01:32]} 22. Qe2 {[%clk 0:01:41]}  Bc7 {[%clk 0:01:23]} 23. f4 {[%clk 0:01:40]}  Bg4 {[%clk 0:01:16]} 24. Qg2 {[%clk 0:01:38]}  Qh5 {[%clk 0:01:15]} 25. Rf2 {[%clk 0:01:31]}  Rac8 {[%clk 0:01:09]} 26. Bb2 {[%clk 0:01:25]}  Nd5 {[%clk 0:01:01]} 27. Qg3 {[%clk 0:01:19]}  Bd8 {[%clk 0:00:53]} 28. Rg2 {[%clk 0:01:17]}  f5 {[%clk 0:00:36]} 29. Nxf5 {[%clk 0:01:17]}  Qxf5 {[%clk 0:00:36]} 30. Qxg4 {[%clk 0:01:17]}  Qxg4 {[%clk 0:00:31]} 31. Rxg4 {[%clk 0:01:17]}  g6 {[%clk 0:00:23]} 32. a3 {[%clk 0:01:16]}  Rxc4 {[%clk 0:00:22]} 33. Rxc4 {[%clk 0:01:10]}  Nxe3 {[%clk 0:00:22]} 34. Rxg6+ {[%clk 0:01:02]}  hxg6 {[%clk 0:00:22]} 35. Rc6 {[%clk 0:01:03]}  Kf7 {[%clk 0:00:21]} 36. Rxa6 {[%clk 0:01:03]}  Nf5 {[%clk 0:00:20]} 37. Be5 {[%clk 0:01:01]}  e3 {[%clk 0:00:18]} 38. Kf1 {[%clk 0:01:00]}  Bh4 {[%clk 0:00:17]} 39. Ke2 {[%clk 0:01:00]}  Rd8 {[%clk 0:00:17]} 40. Ra7+ {[%clk 0:00:59]}  Ke6 {[%clk 0:00:16]} 41. Ra6+ {[%clk 0:00:59]}  Kd5 {[%clk 0:00:16]} 42. Kd3 {[%clk 0:00:58]}  g5 {[%clk 0:00:12]} 43. a4 {[%clk 0:00:56]}  gxf4 {[%clk 0:00:08]} 44. Bxf4 {[%clk 0:00:56]}  Bf2 {[%clk 0:00:09]} 45. a5 {[%clk 0:00:55]}  Rg8 {[%clk 0:00:05]} 46. Rf6 {[%clk 0:00:53]}  Rg1 {[%clk 0:00:02]} 47. Rxf5+ {[%clk 0:00:53]}  Ke6 {[%clk 0:00:02]} 48. Re5+ {[%clk 0:00:53]}  Kf6 {[%clk 0:00:03]} 49. Rxe3 {[%clk 0:00:51]}  Bxe3 {[%clk 0:00:03]} 50. Bxe3 {[%clk 0:00:51]}  Rh1 {[%clk 0:00:03]} 51. a6 {[%clk 0:00:45]}  Rxh2 {[%clk 0:00:03]} 52. a7 {[%clk 0:00:45]}  Ra2 {[%clk 0:00:04]} 53. b5 {[%clk 0:00:46]}  Ke6 {[%clk 0:00:04]} 54. b6 {[%clk 0:00:46]}  Kd7 {[%clk 0:00:05]} 55. b7 {[%clk 0:00:46]} 1-0


[Site "https://www.chess.com"]

[Event "Titled Tuesday Blitz March 08 Early 2022"]
[White "Tologon tegin, Semetei"]
[Black "Zanette, Edgard Vinicius"]
[WhiteFideId "13800574"]
[BlackFideId "2109263"]
[WhiteElo "2258"]
[BlackElo "2182"]
[Result "1-0"]
[Round "02"]
[TimeControl "180+1"]
[Date "2022.03.09"]
[WhiteClock "0:00:08"]
[BlackClock "0:00:06"]

1. e4 {[%clk 0:02:57]}  e5 {[%clk 0:03:00]} 2. Nf3 {[%clk 0:02:54]}  Nc6 {[%clk 0:03:00]} 3. Be2 {[%clk 0:02:55]}  Nf6 {[%clk 0:02:58]} 4. d3 {[%clk 0:02:54]}  Bc5 {[%clk 0:02:58]} 5. O-O {[%clk 0:02:54]}  h6 {[%clk 0:02:58]} 6. c3 {[%clk 0:02:54]}  O-O {[%clk 0:02:57]} 7. Nbd2 {[%clk 0:02:54]}  d5 {[%clk 0:02:56]} 8. Qc2 {[%clk 0:02:53]}  dxe4 {[%clk 0:02:56]} 9. dxe4 {[%clk 0:02:53]}  a6 {[%clk 0:02:54]} 10. h3 {[%clk 0:02:53]}  b5 {[%clk 0:02:48]} 11. a4 {[%clk 0:02:53]}  Rb8 {[%clk 0:02:45]} 12. axb5 {[%clk 0:02:50]}  axb5 {[%clk 0:02:45]} 13. Rd1 {[%clk 0:02:49]}  Qe7 {[%clk 0:02:42]} 14. Nf1 {[%clk 0:02:48]}  Be6 {[%clk 0:02:26]} 15. Ng3 {[%clk 0:02:45]}  b4 {[%clk 0:02:09]} 16. Qa4 {[%clk 0:02:26]}  Rb6 {[%clk 0:02:02]} 17. Bb5 {[%clk 0:02:11]}  bxc3 {[%clk 0:01:42]} 18. bxc3 {[%clk 0:02:10]}  Bd7 {[%clk 0:01:35]} 19. Rxd7 {[%clk 0:01:46]}  Nxd7 {[%clk 0:01:15]} 20. Bxc6 {[%clk 0:01:44]}  Nf6 {[%clk 0:00:53]} 21. Bb5 {[%clk 0:01:20]}  Rfb8 {[%clk 0:00:51]} 22. Bc4 {[%clk 0:01:01]}  Rb1 {[%clk 0:00:44]} 23. Nf5 {[%clk 0:00:57]}  Qe8 {[%clk 0:00:35]} 24. Qa2 {[%clk 0:00:48]}  Rxa1 {[%clk 0:00:33]} 25. Qxa1 {[%clk 0:00:48]}  Nxe4 {[%clk 0:00:33]} 26. Be3 {[%clk 0:00:48]}  Bxe3 {[%clk 0:00:32]} 27. Nxe3 {[%clk 0:00:48]}  Nd6 {[%clk 0:00:32]} 28. Nd2 {[%clk 0:00:26]}  Qc6 {[%clk 0:00:29]} 29. Kh2 {[%clk 0:00:24]}  Qc5 {[%clk 0:00:27]} 30. Qa4 {[%clk 0:00:20]}  e4 {[%clk 0:00:24]} 31. g3 {[%clk 0:00:18]}  Qe5 {[%clk 0:00:17]} 32. Qc2 {[%clk 0:00:18]}  g6 {[%clk 0:00:15]} 33. Kg2 {[%clk 0:00:18]}  Kg7 {[%clk 0:00:15]} 34. Ba2 {[%clk 0:00:15]}  f5 {[%clk 0:00:14]} 35. Ndc4 {[%clk 0:00:16]}  Nxc4 {[%clk 0:00:14]} 36. Nxc4 {[%clk 0:00:16]}  Qc5 {[%clk 0:00:14]} 37. Ne3 {[%clk 0:00:14]}  Rd8 {[%clk 0:00:13]} 38. Bc4 {[%clk 0:00:14]}  Kf6 {[%clk 0:00:12]} 39. Qa2 {[%clk 0:00:14]}  g5 {[%clk 0:00:11]} 40. Bf7 {[%clk 0:00:14]}  Qe7 {[%clk 0:00:10]} 41. Nd5+ {[%clk 0:00:13]}  Rxd5 {[%clk 0:00:10]} 42. Bxd5 {[%clk 0:00:14]}  Qd6 {[%clk 0:00:09]} 43. Qc4 {[%clk 0:00:11]}  c5 {[%clk 0:00:08]} 44. Qb3 {[%clk 0:00:08]}  Ke5 {[%clk 0:00:08]} 45. c4 {[%clk 0:00:07]}  f4 {[%clk 0:00:07]} 46. Qb2+ {[%clk 0:00:07]}  Kf5 {[%clk 0:00:08]} 47. g4+ {[%clk 0:00:08]}  Kg6 {[%clk 0:00:08]} 48. Qh8 {[%clk 0:00:08]}  f3+ {[%clk 0:00:05]} 49. Kg1 {[%clk 0:00:09]}  Qf6 {[%clk 0:00:06]} 50. Bxe4+ {[%clk 0:00:08]} 1-0


[Site "https://www.chess.com"]

[Event "Titled Tuesday Blitz March 08 Early 2022"]
[White "Vasquez Schroeder, Rodrigo"]
[Black "Ahn, Hongjin"]
[WhiteFideId "3400042"]
[BlackFideId "13201492"]
[WhiteElo "2561"]
[BlackElo "1873"]
[Result "0-1"]
[Round "02"]
[TimeControl "180+1"]
[Date "2022.03.08"]
[WhiteClock "0:00:46"]
[BlackClock "0:00:02"]

1. e4 {[%clk 0:03:00]}  e6 {[%clk 0:02:56]} 2. d4 {[%clk 0:02:52]}  d5 {[%clk 0:02:55]} 3. Nc3 {[%clk 0:02:39]}  Nf6 {[%clk 0:02:54]} 4. e5 {[%clk 0:02:39]}  Nfd7 {[%clk 0:02:54]} 5. Nce2 {[%clk 0:02:39]}  c5 {[%clk 0:02:53]} 6. c3 {[%clk 0:02:40]}  Nc6 {[%clk 0:02:53]} 7. f4 {[%clk 0:02:39]}  a6 {[%clk 0:02:43]} 8. Nf3 {[%clk 0:02:38]}  b5 {[%clk 0:02:43]} 9. a3 {[%clk 0:02:38]}  Be7 {[%clk 0:02:43]} 10. h4 {[%clk 0:02:37]}  h5 {[%clk 0:02:39]} 11. g3 {[%clk 0:02:27]}  Rb8 {[%clk 0:02:35]} 12. b4 {[%clk 0:02:23]}  cxd4 {[%clk 0:02:27]} 13. Nexd4 {[%clk 0:02:20]}  Nxd4 {[%clk 0:02:25]} 14. Qxd4 {[%clk 0:02:17]}  Nb6 {[%clk 0:02:18]} 15. Be3 {[%clk 0:02:16]}  Nc4 {[%clk 0:02:10]} 16. Bxc4 {[%clk 0:02:09]}  dxc4 {[%clk 0:02:11]} 17. Qxd8+ {[%clk 0:02:09]}  Bxd8 {[%clk 0:02:10]} 18. Kf2 {[%clk 0:02:09]}  Bb7 {[%clk 0:02:10]} 19. Rhd1 {[%clk 0:02:10]}  Bd5 {[%clk 0:02:05]} 20. a4 {[%clk 0:02:10]}  Rb7 {[%clk 0:00:44]} 21. axb5 {[%clk 0:02:08]}  axb5 {[%clk 0:00:44]} 22. Bc5 {[%clk 0:02:03]}  f6 {[%clk 0:00:12]} 23. Ra8 {[%clk 0:01:52]}  Kf7 {[%clk 0:00:07]} 24. Re1 {[%clk 0:01:46]}  Rd7 {[%clk 0:00:06]} 25. Rb8 {[%clk 0:01:41]}  Rh6 {[%clk 0:00:04]} 26. Nd4 {[%clk 0:01:39]}  fxe5 {[%clk 0:00:03]} 27. fxe5 {[%clk 0:01:39]}  Bc7 {[%clk 0:00:03]} 28. Rf8+ {[%clk 0:01:37]}  Kg6 {[%clk 0:00:03]} 29. g4 {[%clk 0:01:33]}  hxg4 {[%clk 0:00:02]} 30. Kg3 {[%clk 0:01:34]}  Kh7 {[%clk 0:00:03]} 31. Re8 {[%clk 0:01:28]}  Bd8 {[%clk 0:00:02]} 32. Kxg4 {[%clk 0:01:22]}  Bxh4 {[%clk 0:00:01]} 33. Re3 {[%clk 0:01:21]}  Rf7 {[%clk 0:00:01]} 34. Rf8 {[%clk 0:01:14]}  Rxf8 {[%clk 0:00:01]} 35. Bxf8 {[%clk 0:01:12]}  Bd8 {[%clk 0:00:02]} 36. Nf3 {[%clk 0:01:10]}  Kg6 {[%clk 0:00:02]} 37. Bc5 {[%clk 0:01:05]}  Bxf3+ {[%clk 0:00:03]} 38. Rxf3 {[%clk 0:01:05]}  Rh4+ {[%clk 0:00:03]} 39. Kg3 {[%clk 0:01:05]}  Bg5 {[%clk 0:00:04]} 40. Bd4 {[%clk 0:01:02]}  Re4 {[%clk 0:00:04]} 41. Rf8 {[%clk 0:01:02]}  Bd2 {[%clk 0:00:04]} 42. Kf3 {[%clk 0:01:02]}  Rh4 {[%clk 0:00:04]} 43. Ke2 {[%clk 0:01:02]}  Bg5 {[%clk 0:00:04]} 44. Re8 {[%clk 0:01:01]}  Kf5 {[%clk 0:00:04]} 45. Rb8 {[%clk 0:01:00]}  Ke4 {[%clk 0:00:04]} 46. Kf2 {[%clk 0:01:01]}  Rh2+ {[%clk 0:00:05]} 47. Kg3 {[%clk 0:01:01]}  Rc2 {[%clk 0:00:05]} 48. Rxb5 {[%clk 0:01:00]}  Bf4+ {[%clk 0:00:06]} 49. Kh3 {[%clk 0:01:00]}  Bd2 {[%clk 0:00:06]} 50. Rc5 {[%clk 0:00:58]}  Bf4 {[%clk 0:00:06]} 51. Rxc4 {[%clk 0:00:58]}  Kf3 {[%clk 0:00:07]} 52. Bg1 {[%clk 0:00:56]}  Rc1 {[%clk 0:00:07]} 53. Rxf4+ {[%clk 0:00:55]}  Kxf4 {[%clk 0:00:07]} 54. Bd4 {[%clk 0:00:55]}  Ke4 {[%clk 0:00:07]} 55. Kg2 {[%clk 0:00:56]}  Rc2+ {[%clk 0:00:08]} 56. Kg3 {[%clk 0:00:56]}  Kd5 {[%clk 0:00:08]} 57. b5 {[%clk 0:00:56]}  Kc4 {[%clk 0:00:08]} 58. b6 {[%clk 0:00:57]}  Rb2 {[%clk 0:00:08]} 59. Kf4 {[%clk 0:00:57]}  Rb5 {[%clk 0:00:07]} 60. Kg5 {[%clk 0:00:57]}  Kd5 {[%clk 0:00:08]} 61. Kg6 {[%clk 0:00:58]}  Kc6 {[%clk 0:00:07]} 62. Kxg7 {[%clk 0:00:59]}  Kd5 {[%clk 0:00:08]} 63. Kf6 {[%clk 0:00:59]}  Rb1 {[%clk 0:00:08]} 64. Ke7 {[%clk 0:00:59]}  Rh1 {[%clk 0:00:06]} 65. Kd7 {[%clk 0:00:57]}  Rh7+ {[%clk 0:00:06]} 66. Kc8 {[%clk 0:00:55]}  Kc6 {[%clk 0:00:06]} 67. Kb8 {[%clk 0:00:55]}  Rb7+ {[%clk 0:00:04]} 68. Kc8 {[%clk 0:00:55]}  Rh7 {[%clk 0:00:03]} 69. Kd8 {[%clk 0:00:56]}  Rb7 {[%clk 0:00:02]} 70. Ke8 {[%clk 0:00:56]}  Rd7 {[%clk 0:00:02]} 71. Kf8 {[%clk 0:00:53]}  Rb7 {[%clk 0:00:02]} 72. Be3 {[%clk 0:00:53]}  Rd7 {[%clk 0:00:02]} 73. c4 {[%clk 0:00:53]}  Rb7 {[%clk 0:00:03]} 74. Ke8 {[%clk 0:00:49]}  Rd7 {[%clk 0:00:03]} 75. Bg5 {[%clk 0:00:48]}  Rb7 {[%clk 0:00:03]} 76. Bd8 {[%clk 0:00:48]}  Rd7 {[%clk 0:00:03]} 77. Bc7 {[%clk 0:00:48]}  Rh7 {[%clk 0:00:03]} 78. Kd8 {[%clk 0:00:48]}  Rd7+ {[%clk 0:00:02]} 79. Kc8 {[%clk 0:00:48]}  Rh7 {[%clk 0:00:02]} 80. b7 {[%clk 0:00:48]}  Rxc7+ {[%clk 0:00:01]} 81. Kd8 {[%clk 0:00:48]}  Rxb7 {[%clk 0:00:02]} 82. Ke8 {[%clk 0:00:46]}  Rh7 {[%clk 0:00:02]} 0-1


[Site "https://www.chess.com"]

[Event "Titled Tuesday Blitz March 08 Early 2022"]
[White "Vetokhin, Ilia"]
[Black "Nguyen, Thien Ngan"]
[WhiteFideId "24156078"]
[BlackFideId "12414816"]
[WhiteElo "1897"]
[BlackElo "1917"]
[Result "1/2-1/2"]
[Round "02"]
[TimeControl "180+1"]
[Date "2022.03.09"]
[WhiteClock "0:00:09"]
[BlackClock "0:00:09"]

1. d4 {[%clk 0:03:00]}  d5 {[%clk 0:02:55]} 2. c4 {[%clk 0:03:01]}  e6 {[%clk 0:02:55]} 3. g3 {[%clk 0:03:02]}  Nf6 {[%clk 0:02:55]} 4. Bg2 {[%clk 0:03:02]}  Be7 {[%clk 0:02:55]} 5. Nf3 {[%clk 0:03:03]}  O-O {[%clk 0:02:55]} 6. O-O {[%clk 0:03:04]}  dxc4 {[%clk 0:02:55]} 7. Ne5 {[%clk 0:03:04]}  c5 {[%clk 0:02:55]} 8. dxc5 {[%clk 0:03:00]}  Qc7 {[%clk 0:02:55]} 9. Nxc4 {[%clk 0:03:00]}  Qxc5 {[%clk 0:02:55]} 10. b3 {[%clk 0:03:00]}  Nc6 {[%clk 0:02:50]} 11. Bb2 {[%clk 0:02:13]}  Rd8 {[%clk 0:02:48]} 12. Qc1 {[%clk 0:02:11]}  Qh5 {[%clk 0:02:45]} 13. Bf3 {[%clk 0:02:01]}  Ng4 {[%clk 0:02:44]} 14. h4 {[%clk 0:01:54]}  e5 {[%clk 0:02:43]} 15. Nc3 {[%clk 0:01:31]}  Be6 {[%clk 0:02:40]} 16. Rd1 {[%clk 0:01:20]}  Bxh4 {[%clk 0:02:09]} 17. gxh4 {[%clk 0:01:17]}  Qxh4 {[%clk 0:02:08]} 18. Ne4 {[%clk 0:01:16]}  f5 {[%clk 0:01:58]} 19. Bxg4 {[%clk 0:00:52]}  Qxg4+ {[%clk 0:01:54]} 20. Ng3 {[%clk 0:00:53]}  f4 {[%clk 0:01:54]} 21. Nxe5 {[%clk 0:00:51]}  Nxe5 {[%clk 0:01:51]} 22. Bxe5 {[%clk 0:00:52]}  fxg3 {[%clk 0:01:51]} 23. Bxg3 {[%clk 0:00:44]}  Qxe2 {[%clk 0:01:51]} 24. Rxd8+ {[%clk 0:00:36]}  Rxd8 {[%clk 0:01:50]} 25. Qc7 {[%clk 0:00:34]}  Qd3 {[%clk 0:00:56]} 26. Re1 {[%clk 0:00:22]}  Bh3 {[%clk 0:00:35]} 27. Qxb7 {[%clk 0:00:13]}  Qd2 {[%clk 0:00:31]} 28. Qe4 {[%clk 0:00:12]}  Bf5 {[%clk 0:00:18]} 29. Qe5 {[%clk 0:00:10]}  g6 {[%clk 0:00:14]} 30. Re2 {[%clk 0:00:09]}  Qd1+ {[%clk 0:00:14]} 31. Kh2 {[%clk 0:00:09]}  Qd5 {[%clk 0:00:14]} 32. Qxd5+ {[%clk 0:00:08]}  Rxd5 {[%clk 0:00:14]} 33. Re7 {[%clk 0:00:08]}  Ra5 {[%clk 0:00:14]} 34. a4 {[%clk 0:00:07]}  a6 {[%clk 0:00:13]} 35. Be5 {[%clk 0:00:07]}  Rd5 {[%clk 0:00:13]} 36. Bc3 {[%clk 0:00:05]}  Rd3 {[%clk 0:00:13]} 37. Rc7 {[%clk 0:00:05]}  Rf3 {[%clk 0:00:12]} 38. Kg2 {[%clk 0:00:04]}  Be4 {[%clk 0:00:13]} 39. Kg1 {[%clk 0:00:04]}  Rd3 {[%clk 0:00:12]} 40. b4 {[%clk 0:00:03]}  Rd1+ {[%clk 0:00:13]} 41. Kh2 {[%clk 0:00:03]}  Rh1+ {[%clk 0:00:12]} 42. Kg3 {[%clk 0:00:04]}  Bf5 {[%clk 0:00:12]} 43. Kf4 {[%clk 0:00:04]}  h6 {[%clk 0:00:11]} 44. Ke5 {[%clk 0:00:05]}  Rh4 {[%clk 0:00:11]} 45. f4 {[%clk 0:00:05]}  Rh2 {[%clk 0:00:10]} 46. Kf6 {[%clk 0:00:06]}  Re2 {[%clk 0:00:09]} 47. Rc8+ {[%clk 0:00:06]}  Kh7 {[%clk 0:00:09]} 48. Rc7+ {[%clk 0:00:06]}  Kg8 {[%clk 0:00:09]} 49. Be5 {[%clk 0:00:07]}  Rd2 {[%clk 0:00:09]} 50. Rg7+ {[%clk 0:00:07]}  Kf8 {[%clk 0:00:09]} 51. Ra7 {[%clk 0:00:08]}  Rd8 {[%clk 0:00:08]} 52. Rxa6 {[%clk 0:00:07]}  Kg8 {[%clk 0:00:08]} 53. Rb6 {[%clk 0:00:08]}  Rf8+ {[%clk 0:00:08]} 54. Ke7 {[%clk 0:00:07]}  Rf7+ {[%clk 0:00:08]} 55. Ke8 {[%clk 0:00:07]}  g5 {[%clk 0:00:07]} 56. fxg5 {[%clk 0:00:06]}  hxg5 {[%clk 0:00:07]} 57. Rh6 {[%clk 0:00:05]}  Rf8+ {[%clk 0:00:06]} 58. Ke7 {[%clk 0:00:06]}  Rf7+ {[%clk 0:00:07]} 59. Ke8 {[%clk 0:00:06]}  Bh7 {[%clk 0:00:07]} 60. Rh5 {[%clk 0:00:04]}  Rf5 {[%clk 0:00:07]} 61. Bd6 {[%clk 0:00:04]}  Rd5 {[%clk 0:00:07]} 62. Ke7 {[%clk 0:00:04]}  g4 {[%clk 0:00:06]} 63. Bc5 {[%clk 0:00:04]}  Rxh5 {[%clk 0:00:06]} 64. a5 {[%clk 0:00:04]}  Re5+ {[%clk 0:00:06]} 65. Kd6 {[%clk 0:00:05]}  Re1 {[%clk 0:00:05]} 66. a6 {[%clk 0:00:05]}  g3 {[%clk 0:00:05]} 67. b5 {[%clk 0:00:05]}  Ra1 {[%clk 0:00:06]} 68. a7 {[%clk 0:00:05]}  Be4 {[%clk 0:00:06]} 69. b6 {[%clk 0:00:05]}  g2 {[%clk 0:00:06]} 70. Kc7 {[%clk 0:00:05]}  Kf7 {[%clk 0:00:06]} 71. b7 {[%clk 0:00:05]}  Bxb7 {[%clk 0:00:06]} 72. Kxb7 {[%clk 0:00:06]}  Ke6 {[%clk 0:00:05]} 73. a8=Q {[%clk 0:00:06]}  Rxa8 {[%clk 0:00:04]} 74. Kxa8 {[%clk 0:00:07]}  Kd5 {[%clk 0:00:05]} 75. Ba7 {[%clk 0:00:07]}  Ke4 {[%clk 0:00:05]} 76. Kb7 {[%clk 0:00:08]}  Kf3 {[%clk 0:00:06]} 77. Bb6 {[%clk 0:00:09]}  Ke2 {[%clk 0:00:07]} 78. Kc6 {[%clk 0:00:09]}  Kf1 {[%clk 0:00:08]} 79. Bc5 {[%clk 0:00:09]}  g1=Q {[%clk 0:00:09]} 80. Bxg1 {[%clk 0:00:09]} 1/2-1/2


[Site "https://www.chess.com"]

[Event "Titled Tuesday Blitz March 08 Early 2022"]
[White "Wagner, Dennis"]
[Black "Matveeva, Olga"]
[WhiteFideId "24650684"]
[BlackFideId "24107018"]
[WhiteElo "2355"]
[BlackElo "2083"]
[Result "1-0"]
[Round "02"]
[TimeControl "180+1"]
[Date "2022.03.09"]
[WhiteClock "0:01:25"]
[BlackClock "0:01:22"]

1. d4 {[%clk 0:03:00]}  Nf6 {[%clk 0:02:59]} 2. Nf3 {[%clk 0:03:00]}  g6 {[%clk 0:02:58]} 3. Bg5 {[%clk 0:02:57]}  Bg7 {[%clk 0:02:49]} 4. c3 {[%clk 0:02:57]}  d5 {[%clk 0:02:47]} 5. Nbd2 {[%clk 0:02:56]}  O-O {[%clk 0:02:46]} 6. e3 {[%clk 0:02:56]}  c6 {[%clk 0:02:44]} 7. Be2 {[%clk 0:02:51]}  Bg4 {[%clk 0:02:43]} 8. h3 {[%clk 0:02:50]}  Bxf3 {[%clk 0:02:42]} 9. Nxf3 {[%clk 0:02:51]}  Nbd7 {[%clk 0:02:42]} 10. O-O {[%clk 0:02:51]}  h6 {[%clk 0:02:42]} 11. Bf4 {[%clk 0:02:51]}  Re8 {[%clk 0:02:39]} 12. Bh2 {[%clk 0:02:51]}  Ne4 {[%clk 0:02:36]} 13. c4 {[%clk 0:02:46]}  Qb6 {[%clk 0:02:29]} 14. cxd5 {[%clk 0:02:36]}  cxd5 {[%clk 0:02:30]} 15. Qb3 {[%clk 0:02:37]}  Qxb3 {[%clk 0:02:26]} 16. axb3 {[%clk 0:02:37]}  Rec8 {[%clk 0:02:25]} 17. Rfc1 {[%clk 0:02:26]}  a6 {[%clk 0:02:25]} 18. g4 {[%clk 0:02:24]}  e6 {[%clk 0:02:20]} 19. Kg2 {[%clk 0:02:22]}  f5 {[%clk 0:02:09]} 20. Bc7 {[%clk 0:02:17]}  Kf7 {[%clk 0:02:08]} 21. Rc2 {[%clk 0:02:14]}  Ndf6 {[%clk 0:01:59]} 22. Ne5+ {[%clk 0:02:13]}  Ke8 {[%clk 0:01:55]} 23. Nxg6 {[%clk 0:02:09]}  fxg4 {[%clk 0:01:34]} 24. hxg4 {[%clk 0:02:09]}  Nd2 {[%clk 0:01:31]} 25. b4 {[%clk 0:01:33]}  Nc4 {[%clk 0:01:23]} 26. Bxc4 {[%clk 0:01:24]}  Rxc7 {[%clk 0:01:22]} 27. Bb5+ {[%clk 0:01:25]} 1-0


[Site "https://www.chess.com"]